[Event "Titled Tuesday Blitz May 30 Late 2023"]
[White "Kovalevsky, Stanislav"]
[Black "Makridis, Dimitrios"]
[WhiteFideId "13508598"]
[BlackFideId "25864475"]
[WhiteElo "2174"]
[BlackElo "2277"]
[Result "1-0"]
[Round "06"]
[TimeControl "180+2"]
[Date "2023.05.31"]
[WhiteClock "0:00:06"]
[BlackClock "0:00:03"]

1. c4 {[%clk 0:03:00]}  e6 {[%clk 0:02:59]} 2. e4 {[%clk 0:03:00]}  d5 {[%clk 0:03:00]} 3. exd5 {[%clk 0:03:01]}  exd5 {[%clk 0:03:01]} 4. cxd5 {[%clk 0:03:01]}  Nf6 {[%clk 0:03:02]} 5. Nc3 {[%clk 0:03:02]}  Nxd5 {[%clk 0:03:03]} 6. Bc4 {[%clk 0:03:02]}  Nb6 {[%clk 0:03:02]} 7. Bb3 {[%clk 0:03:03]}  Nc6 {[%clk 0:03:02]} 8. Nge2 {[%clk 0:03:03]}  Be7 {[%clk 0:02:56]} 9. d4 {[%clk 0:03:02]}  O-O {[%clk 0:02:57]} 10. O-O {[%clk 0:03:02]}  Bf5 {[%clk 0:02:57]} 11. Be3 {[%clk 0:03:01]}  Nb4 {[%clk 0:02:58]} 12. Ng3 {[%clk 0:02:47]}  Bg6 {[%clk 0:02:57]} 13. Re1 {[%clk 0:02:32]}  Bf6 {[%clk 0:02:30]} 14. Nce4 {[%clk 0:02:28]}  Re8 {[%clk 0:02:25]} 15. Nxf6+ {[%clk 0:01:50]}  Qxf6 {[%clk 0:02:26]} 16. Qg4 {[%clk 0:01:23]}  N4d5 {[%clk 0:02:14]} 17. Rac1 {[%clk 0:01:15]}  c6 {[%clk 0:02:12]} 18. Bg5 {[%clk 0:01:09]}  Qd6 {[%clk 0:02:11]} 19. h4 {[%clk 0:01:00]}  h6 {[%clk 0:02:01]} 20. Bxh6 {[%clk 0:00:57]}  gxh6 {[%clk 0:01:41]} 21. h5 {[%clk 0:00:57]}  Kh7 {[%clk 0:00:48]} 22. hxg6+ {[%clk 0:00:53]}  fxg6 {[%clk 0:00:49]} 23. Bc2 {[%clk 0:00:44]}  Rf8 {[%clk 0:00:36]} 24. Re6 {[%clk 0:00:36]}  Qxe6 {[%clk 0:00:27]} 25. Qxe6 {[%clk 0:00:35]}  Rf6 {[%clk 0:00:28]} 26. Qg4 {[%clk 0:00:26]}  Raf8 {[%clk 0:00:21]} 27. Ne4 {[%clk 0:00:18]}  Rf4 {[%clk 0:00:21]} 28. Qg3 {[%clk 0:00:17]}  R4f7 {[%clk 0:00:09]} 29. Nc5 {[%clk 0:00:15]}  Rf6 {[%clk 0:00:07]} 30. Nxb7 {[%clk 0:00:12]}  Nd7 {[%clk 0:00:04]} 31. Be4 {[%clk 0:00:11]}  Nf4 {[%clk 0:00:04]} 32. Kh1 {[%clk 0:00:08]}  Ne2 {[%clk 0:00:04]} 33. Qc7 {[%clk 0:00:07]}  Nxc1 {[%clk 0:00:04]} 34. Qxd7+ {[%clk 0:00:07]}  R8f7 {[%clk 0:00:05]} 35. Qc8 {[%clk 0:00:06]}  Rxf2 {[%clk 0:00:05]} 36. Nd8 {[%clk 0:00:06]}  Rf1+ {[%clk 0:00:05]} 37. Kh2 {[%clk 0:00:06]}  Rf8 {[%clk 0:00:04]} 38. Qd7+ {[%clk 0:00:06]}  Kg8 {[%clk 0:00:03]} 39. Bxg6 {[%clk 0:00:07]}  Rh1+ {[%clk 0:00:03]} 40. Kxh1 {[%clk 0:00:06]} 1-0


[Site "https://www.chess.com"]

[Event "Titled Tuesday Blitz May 30 Late 2023"]
[White "KorolDimitriy75"]
[Black "Isajevsky, Anton"]
[BlackFideId "4142500"]
[WhiteElo "2431"]
[BlackElo "2510"]
[Result "1-0"]
[Round "06"]
[TimeControl "180+2"]
[Date "2023.05.31"]
[WhiteClock "0:00:14"]
[BlackClock "0:00:18"]

1. d4 {[%clk 0:03:00]}  e6 {[%clk 0:02:59]} 2. c4 {[%clk 0:03:01]}  Bb4+ {[%clk 0:02:59]} 3. Nc3 {[%clk 0:03:00]}  d5 {[%clk 0:02:48]} 4. cxd5 {[%clk 0:02:56]}  exd5 {[%clk 0:02:48]} 5. Qc2 {[%clk 0:02:55]}  c6 {[%clk 0:02:38]} 6. Bf4 {[%clk 0:02:50]}  Ne7 {[%clk 0:02:36]} 7. e3 {[%clk 0:02:47]}  Bd6 {[%clk 0:02:14]} 8. Bxd6 {[%clk 0:02:40]}  Qxd6 {[%clk 0:02:14]} 9. Bd3 {[%clk 0:02:41]}  g6 {[%clk 0:02:13]} 10. Nge2 {[%clk 0:02:41]}  Bf5 {[%clk 0:02:10]} 11. O-O {[%clk 0:02:37]}  O-O {[%clk 0:02:10]} 12. f3 {[%clk 0:02:32]}  Bxd3 {[%clk 0:02:07]} 13. Qxd3 {[%clk 0:02:33]}  Nd7 {[%clk 0:01:58]} 14. Rad1 {[%clk 0:02:30]}  Rad8 {[%clk 0:01:56]} 15. e4 {[%clk 0:02:25]}  dxe4 {[%clk 0:01:56]} 16. fxe4 {[%clk 0:02:26]}  c5 {[%clk 0:01:54]} 17. d5 {[%clk 0:01:57]}  a6 {[%clk 0:01:50]} 18. Qh3 {[%clk 0:01:31]}  b5 {[%clk 0:01:20]} 19. Rd3 {[%clk 0:01:04]}  b4 {[%clk 0:00:59]} 20. Nd1 {[%clk 0:00:59]}  Ne5 {[%clk 0:00:51]} 21. Rg3 {[%clk 0:00:59]}  f5 {[%clk 0:00:40]} 22. exf5 {[%clk 0:00:49]}  Nxd5 {[%clk 0:00:35]} 23. Ne3 {[%clk 0:00:17]}  Rde8 {[%clk 0:00:21]} 24. Nxd5 {[%clk 0:00:14]}  Qxd5 {[%clk 0:00:21]} 25. Nf4 {[%clk 0:00:14]}  Qd4+ {[%clk 0:00:18]} 26. Kh1 {[%clk 0:00:14]}  Rxf5 {[%clk 0:00:18]} 27. Qxf5 {[%clk 0:00:14]} 1-0


[Site "https://www.chess.com"]

[Event "Titled Tuesday Blitz May 30 Late 2023"]
[White "Przybylski, Wojciech"]
[Black "Pinheiro, Iung Alicio de O."]
[WhiteFideId "1117599"]
[BlackFideId "2104350"]
[WhiteElo "2222"]
[BlackElo "2283"]
[Result "0-1"]
[Round "06"]
[TimeControl "180+2"]
[Date "2023.05.31"]
[WhiteClock "0:00:12"]
[BlackClock "0:00:11"]

1. e4 {[%clk 0:03:00]}  e5 {[%clk 0:02:58]} 2. Nf3 {[%clk 0:02:59]}  Nc6 {[%clk 0:02:59]} 3. d4 {[%clk 0:02:59]}  exd4 {[%clk 0:02:58]} 4. Nxd4 {[%clk 0:03:00]}  Bb4+ {[%clk 0:02:58]} 5. c3 {[%clk 0:02:59]}  Bc5 {[%clk 0:02:58]} 6. Be3 {[%clk 0:02:53]}  Bb6 {[%clk 0:02:58]} 7. Qg4 {[%clk 0:02:52]}  g6 {[%clk 0:02:34]} 8. Bg5 {[%clk 0:02:39]}  f6 {[%clk 0:02:24]} 9. Be3 {[%clk 0:02:31]}  d5 {[%clk 0:02:08]} 10. Qh4 {[%clk 0:02:25]}  Nxd4 {[%clk 0:01:58]} 11. cxd4 {[%clk 0:02:22]}  dxe4 {[%clk 0:01:53]} 12. Nc3 {[%clk 0:02:07]}  Bf5 {[%clk 0:01:27]} 13. g4 {[%clk 0:01:53]}  g5 {[%clk 0:01:25]} 14. Qg3 {[%clk 0:01:53]}  Bg6 {[%clk 0:01:24]} 15. h4 {[%clk 0:01:52]}  gxh4 {[%clk 0:01:20]} 16. Rxh4 {[%clk 0:01:49]}  Ne7 {[%clk 0:01:19]} 17. O-O-O {[%clk 0:01:44]}  Qd7 {[%clk 0:01:17]} 18. Bh3 {[%clk 0:01:34]}  O-O-O {[%clk 0:01:13]} 19. g5 {[%clk 0:01:34]}  f5 {[%clk 0:00:57]} 20. Rxe4 {[%clk 0:01:33]}  Kb8 {[%clk 0:00:54]} 21. Re5 {[%clk 0:01:29]}  Nc6 {[%clk 0:00:52]} 22. Rd5 {[%clk 0:01:29]}  Qf7 {[%clk 0:00:51]} 23. Bg2 {[%clk 0:01:26]}  Nb4 {[%clk 0:00:48]} 24. Rxd8+ {[%clk 0:01:23]}  Rxd8 {[%clk 0:00:49]} 25. d5 {[%clk 0:01:20]}  f4 {[%clk 0:00:40]} 26. Qxf4 {[%clk 0:01:15]}  Qxf4 {[%clk 0:00:36]} 27. Bxf4 {[%clk 0:01:14]}  Nd3+ {[%clk 0:00:37]} 28. Rxd3 {[%clk 0:01:10]}  Bxd3 {[%clk 0:00:38]} 29. Bg3 {[%clk 0:01:04]}  Bg6 {[%clk 0:00:35]} 30. Kd2 {[%clk 0:00:53]}  Rf8 {[%clk 0:00:33]} 31. f4 {[%clk 0:00:51]}  Re8 {[%clk 0:00:31]} 32. Nd1 {[%clk 0:00:44]}  Ba5+ {[%clk 0:00:28]} 33. Nc3 {[%clk 0:00:43]}  Bf5 {[%clk 0:00:25]} 34. Bf2 {[%clk 0:00:36]}  Bb6 {[%clk 0:00:25]} 35. Bxb6 {[%clk 0:00:34]}  axb6 {[%clk 0:00:26]} 36. Bf3 {[%clk 0:00:32]}  h6 {[%clk 0:00:25]} 37. gxh6 {[%clk 0:00:28]}  Rh8 {[%clk 0:00:25]} 38. Ke3 {[%clk 0:00:28]}  Rxh6 {[%clk 0:00:25]} 39. Kd4 {[%clk 0:00:28]}  Rh2 {[%clk 0:00:23]} 40. Ke5 {[%clk 0:00:27]}  Bd7 {[%clk 0:00:18]} 41. Be2 {[%clk 0:00:26]}  Rf2 {[%clk 0:00:17]} 42. a3 {[%clk 0:00:22]}  Kc8 {[%clk 0:00:18]} 43. Ke4 {[%clk 0:00:21]}  Kd8 {[%clk 0:00:19]} 44. Ke3 {[%clk 0:00:21]}  Rh2 {[%clk 0:00:19]} 45. Ne4 {[%clk 0:00:20]}  Ke7 {[%clk 0:00:18]} 46. Ng5 {[%clk 0:00:20]}  Bf5 {[%clk 0:00:16]} 47. b4 {[%clk 0:00:19]}  Kd6 {[%clk 0:00:15]} 48. Bf3 {[%clk 0:00:19]}  Ra2 {[%clk 0:00:15]} 49. Nf7+ {[%clk 0:00:19]}  Ke7 {[%clk 0:00:14]} 50. Nh6 {[%clk 0:00:18]}  Rxa3+ {[%clk 0:00:14]} 51. Kf2 {[%clk 0:00:18]}  Kf6 {[%clk 0:00:15]} 52. d6 {[%clk 0:00:14]}  cxd6 {[%clk 0:00:14]} 53. Bxb7 {[%clk 0:00:14]}  Rb3 {[%clk 0:00:13]} 54. Bd5 {[%clk 0:00:08]}  Rxb4 {[%clk 0:00:13]} 55. Ke3 {[%clk 0:00:09]}  b5 {[%clk 0:00:11]} 56. Bc6 {[%clk 0:00:09]}  Kg6 {[%clk 0:00:11]} 57. Ng8 {[%clk 0:00:08]}  Kf7 {[%clk 0:00:11]} 58. Nh6+ {[%clk 0:00:08]}  Ke6 {[%clk 0:00:10]} 59. Bb7 {[%clk 0:00:07]}  Rb3+ {[%clk 0:00:08]} 60. Kd4 {[%clk 0:00:07]}  Kf6 {[%clk 0:00:07]} 61. Kd5 {[%clk 0:00:04]}  Rd3+ {[%clk 0:00:06]} 62. Kc6 {[%clk 0:00:04]}  b4 {[%clk 0:00:07]} 63. Nxf5 {[%clk 0:00:03]}  Kxf5 {[%clk 0:00:07]} 64. Bc8+ {[%clk 0:00:03]}  Kxf4 {[%clk 0:00:07]} 65. Be6 {[%clk 0:00:03]}  b3 {[%clk 0:00:06]} 66. Kb5 {[%clk 0:00:03]}  b2 {[%clk 0:00:06]} 67. Ba2 {[%clk 0:00:03]}  Ra3 {[%clk 0:00:04]} 68. Bb1 {[%clk 0:00:03]}  Ra1 {[%clk 0:00:05]} 69. Kb4 {[%clk 0:00:03]}  Rxb1 {[%clk 0:00:04]} 70. Kb3 {[%clk 0:00:04]}  Rd1 {[%clk 0:00:04]} 71. Kxb2 {[%clk 0:00:05]}  Ke3 {[%clk 0:00:05]} 72. Kc3 {[%clk 0:00:06]}  Ke2 {[%clk 0:00:06]} 73. Kc2 {[%clk 0:00:07]}  d5 {[%clk 0:00:06]} 74. Kc3 {[%clk 0:00:08]}  d4+ {[%clk 0:00:07]} 75. Kb4 {[%clk 0:00:08]}  d3 {[%clk 0:00:08]} 76. Kb3 {[%clk 0:00:09]}  d2 {[%clk 0:00:09]} 77. Kb2 {[%clk 0:00:10]}  Rc1 {[%clk 0:00:10]} 78. Kb3 {[%clk 0:00:11]}  d1=Q+ {[%clk 0:00:11]} 79. Kb4 {[%clk 0:00:11]}  Qd2+ {[%clk 0:00:11]} 80. Ka3 {[%clk 0:00:12]}  Qc3+ {[%clk 0:00:11]} 0-1


[Site "https://www.chess.com"]

[Event "Titled Tuesday Blitz May 30 Late 2023"]
[White "Shuvalov, Evgenij"]
[Black "Abduzhaparov"]
[WhiteFideId "4187237"]
[WhiteElo "2080"]
[BlackElo "2418"]
[Result "1-0"]
[Round "06"]
[TimeControl "180+2"]
[Date "2023.05.31"]
[WhiteClock "0:00:19"]
[BlackClock "0:00:02"]

1. d4 {[%clk 0:03:00]}  d6 {[%clk 0:03:00]} 2. Nf3 {[%clk 0:03:00]}  Nf6 {[%clk 0:03:01]} 3. c4 {[%clk 0:03:00]}  Nbd7 {[%clk 0:03:02]} 4. Nc3 {[%clk 0:02:59]}  e5 {[%clk 0:03:03]} 5. e4 {[%clk 0:02:59]}  Be7 {[%clk 0:03:03]} 6. g3 {[%clk 0:02:59]}  O-O {[%clk 0:03:03]} 7. Bg2 {[%clk 0:02:59]}  exd4 {[%clk 0:03:01]} 8. Nxd4 {[%clk 0:02:59]}  Re8 {[%clk 0:03:02]} 9. O-O {[%clk 0:02:59]}  Bf8 {[%clk 0:03:02]} 10. h3 {[%clk 0:02:58]}  Nc5 {[%clk 0:03:02]} 11. Re1 {[%clk 0:02:57]}  a5 {[%clk 0:03:02]} 12. Nb3 {[%clk 0:02:46]}  Ne6 {[%clk 0:02:52]} 13. Be3 {[%clk 0:02:39]}  c6 {[%clk 0:02:52]} 14. Na4 {[%clk 0:02:37]}  Nd7 {[%clk 0:02:45]} 15. Qd2 {[%clk 0:02:32]}  b5 {[%clk 0:02:34]} 16. cxb5 {[%clk 0:02:29]}  cxb5 {[%clk 0:02:35]} 17. Nc3 {[%clk 0:02:29]}  b4 {[%clk 0:02:35]} 18. Nd5 {[%clk 0:02:28]}  Bb7 {[%clk 0:02:32]} 19. Rac1 {[%clk 0:02:21]}  Nec5 {[%clk 0:02:31]} 20. Nxc5 {[%clk 0:02:14]}  Nxc5 {[%clk 0:02:32]} 21. Bxc5 {[%clk 0:02:01]}  dxc5 {[%clk 0:02:32]} 22. e5 {[%clk 0:02:01]}  Rb8 {[%clk 0:02:10]} 23. f4 {[%clk 0:01:58]}  Kh8 {[%clk 0:01:49]} 24. b3 {[%clk 0:01:54]}  Re7 {[%clk 0:01:46]} 25. Rcd1 {[%clk 0:01:49]}  Rd7 {[%clk 0:01:44]} 26. Qd3 {[%clk 0:01:44]}  Bxd5 {[%clk 0:01:18]} 27. Bxd5 {[%clk 0:01:43]}  Qb6 {[%clk 0:01:19]} 28. Qc4 {[%clk 0:01:38]}  Rbd8 {[%clk 0:01:19]} 29. Rd3 {[%clk 0:01:30]}  Qg6 {[%clk 0:01:06]} 30. Red1 {[%clk 0:01:24]}  h5 {[%clk 0:01:05]} 31. h4 {[%clk 0:01:23]}  Qf5 {[%clk 0:01:02]} 32. Kh2 {[%clk 0:01:20]}  Qg4 {[%clk 0:00:54]} 33. Bf3 {[%clk 0:01:07]}  Qf5 {[%clk 0:00:39]} 34. Rxd7 {[%clk 0:00:43]}  Rxd7 {[%clk 0:00:40]} 35. Rxd7 {[%clk 0:00:43]}  Qxd7 {[%clk 0:00:41]} 36. Bxh5 {[%clk 0:00:43]}  g6 {[%clk 0:00:31]} 37. Bf3 {[%clk 0:00:42]}  Kg7 {[%clk 0:00:27]} 38. Bg2 {[%clk 0:00:40]}  Qd2 {[%clk 0:00:25]} 39. e6 {[%clk 0:00:35]}  fxe6 {[%clk 0:00:25]} 40. Qxe6 {[%clk 0:00:35]}  Qd6 {[%clk 0:00:24]} 41. Qxd6 {[%clk 0:00:33]}  Bxd6 {[%clk 0:00:24]} 42. Bd5 {[%clk 0:00:33]}  Kf6 {[%clk 0:00:21]} 43. Kg2 {[%clk 0:00:33]}  Bc7 {[%clk 0:00:20]} 44. Kf3 {[%clk 0:00:33]}  Bd8 {[%clk 0:00:20]} 45. Bc4 {[%clk 0:00:30]}  Kg7 {[%clk 0:00:16]} 46. Ke4 {[%clk 0:00:30]}  Bf6 {[%clk 0:00:16]} 47. Kf3 {[%clk 0:00:23]}  Be7 {[%clk 0:00:16]} 48. Kg4 {[%clk 0:00:24]}  Bf6 {[%clk 0:00:15]} 49. h5 {[%clk 0:00:24]}  Bc3 {[%clk 0:00:12]} 50. Bd3 {[%clk 0:00:22]}  gxh5+ {[%clk 0:00:10]} 51. Kxh5 {[%clk 0:00:23]}  Bd2 {[%clk 0:00:09]} 52. Kg5 {[%clk 0:00:22]}  Be3 {[%clk 0:00:07]} 53. g4 {[%clk 0:00:21]}  Bd2 {[%clk 0:00:07]} 54. Kf5 {[%clk 0:00:21]}  Bc1 {[%clk 0:00:07]} 55. Bc4 {[%clk 0:00:21]}  Bd2 {[%clk 0:00:07]} 56. g5 {[%clk 0:00:21]}  Bc1 {[%clk 0:00:04]} 57. Kg4 {[%clk 0:00:22]}  Bd2 {[%clk 0:00:01]} 58. f5 {[%clk 0:00:22]}  a4 {[%clk 0:00:02]} 59. bxa4 {[%clk 0:00:21]}  b3 {[%clk 0:00:02]} 60. axb3 {[%clk 0:00:21]}  Bc3 {[%clk 0:00:03]} 61. f6+ {[%clk 0:00:19]}  Kh8 {[%clk 0:00:03]} 62. Kf5 {[%clk 0:00:18]}  Kh7 {[%clk 0:00:02]} 63. g6+ {[%clk 0:00:19]}  Kh8 {[%clk 0:00:02]} 64. g7+ {[%clk 0:00:19]} 1-0


[Site "https://www.chess.com"]

[Event "Titled Tuesday Blitz May 30 Late 2023"]
[White "Poltorak, Sebastian"]
[Black "Gutkin, Ilya"]
[WhiteFideId "1199498"]
[BlackFideId "16203470"]
[WhiteElo "2195"]
[BlackElo "2265"]
[Result "1/2-1/2"]
[Round "06"]
[TimeControl "180+2"]
[Date "2023.05.31"]
[WhiteClock "0:00:08"]
[BlackClock "0:00:03"]

1. b3 {[%clk 0:02:56]}  e5 {[%clk 0:03:00]} 2. Bb2 {[%clk 0:02:53]}  Nc6 {[%clk 0:03:00]} 3. e3 {[%clk 0:02:50]}  Nf6 {[%clk 0:03:00]} 4. Bb5 {[%clk 0:02:50]}  Bd6 {[%clk 0:03:00]} 5. Na3 {[%clk 0:02:45]}  a6 {[%clk 0:03:00]} 6. Bxc6 {[%clk 0:02:45]}  dxc6 {[%clk 0:03:01]} 7. Nc4 {[%clk 0:02:45]}  Qe7 {[%clk 0:03:00]} 8. Nxd6+ {[%clk 0:02:42]}  cxd6 {[%clk 0:03:01]} 9. Ne2 {[%clk 0:02:41]}  O-O {[%clk 0:02:56]} 10. O-O {[%clk 0:02:41]}  Bg4 {[%clk 0:02:55]} 11. Qe1 {[%clk 0:02:30]}  Bxe2 {[%clk 0:02:55]} 12. Qxe2 {[%clk 0:02:29]}  Nd5 {[%clk 0:02:54]} 13. a3 {[%clk 0:02:23]}  f6 {[%clk 0:02:45]} 14. Rae1 {[%clk 0:02:21]}  a5 {[%clk 0:02:41]} 15. Qh5 {[%clk 0:02:09]}  a4 {[%clk 0:02:39]} 16. b4 {[%clk 0:02:08]}  Nb6 {[%clk 0:02:35]} 17. d3 {[%clk 0:02:06]}  Qf7 {[%clk 0:02:35]} 18. Qe2 {[%clk 0:01:57]}  d5 {[%clk 0:02:32]} 19. f4 {[%clk 0:01:56]}  exf4 {[%clk 0:02:30]} 20. Rxf4 {[%clk 0:01:55]}  Rae8 {[%clk 0:02:27]} 21. Qf2 {[%clk 0:01:53]}  Qd7 {[%clk 0:02:23]} 22. e4 {[%clk 0:01:52]}  dxe4 {[%clk 0:02:23]} 23. Qxb6 {[%clk 0:01:51]}  exd3 {[%clk 0:02:22]} 24. Rxe8 {[%clk 0:01:43]}  Rxe8 {[%clk 0:02:22]} 25. cxd3 {[%clk 0:01:11]}  Qxd3 {[%clk 0:02:21]} 26. Rf1 {[%clk 0:01:01]}  Re2 {[%clk 0:02:03]} 27. Bd4 {[%clk 0:00:52]}  Qe4 {[%clk 0:01:58]} 28. Qd8+ {[%clk 0:00:48]}  Kf7 {[%clk 0:01:58]} 29. Qd7+ {[%clk 0:00:48]}  Kg6 {[%clk 0:01:52]} 30. Bf2 {[%clk 0:00:44]}  b5 {[%clk 0:01:42]} 31. h3 {[%clk 0:00:34]}  h5 {[%clk 0:01:41]} 32. Rc1 {[%clk 0:00:32]}  Rxf2 {[%clk 0:01:37]} 33. Kxf2 {[%clk 0:00:23]}  Qf4+ {[%clk 0:01:37]} 34. Ke2 {[%clk 0:00:23]}  Qxc1 {[%clk 0:01:37]} 35. Qe8+ {[%clk 0:00:23]}  Kg5 {[%clk 0:01:29]} 36. Qd7 {[%clk 0:00:02]}  Kh6 {[%clk 0:01:05]} 37. Qc8 {[%clk 0:00:02]}  Kh7 {[%clk 0:01:02]} 38. Qf5+ {[%clk 0:00:02]}  Kh6 {[%clk 0:00:59]} 39. Qc8 {[%clk 0:00:02]}  Qxa3 {[%clk 0:00:51]} 40. h4 {[%clk 0:00:01]}  Qb2+ {[%clk 0:00:44]} 41. Kf1 {[%clk 0:00:01]}  Qc1+ {[%clk 0:00:40]} 42. Kf2 {[%clk 0:00:01]}  Qf4+ {[%clk 0:00:39]} 43. Kg1 {[%clk 0:00:01]}  Qxh4 {[%clk 0:00:38]} 44. Qh8+ {[%clk 0:00:01]}  Kg6 {[%clk 0:00:38]} 45. Qe8+ {[%clk 0:00:02]}  Kh7 {[%clk 0:00:37]} 46. Qxc6 {[%clk 0:00:01]}  Qxb4 {[%clk 0:00:36]} 47. Qc2+ {[%clk 0:00:01]}  Kh6 {[%clk 0:00:20]} 48. Qc1+ {[%clk 0:00:01]}  g5 {[%clk 0:00:20]} 49. Qc8 {[%clk 0:00:02]}  Qd4+ {[%clk 0:00:19]} 50. Kh1 {[%clk 0:00:02]}  Qd1+ {[%clk 0:00:18]} 51. Kh2 {[%clk 0:00:03]}  Qd6+ {[%clk 0:00:18]} 52. Kg1 {[%clk 0:00:03]}  a3 {[%clk 0:00:15]} 53. Qh8+ {[%clk 0:00:03]}  Kg6 {[%clk 0:00:16]} 54. Qg8+ {[%clk 0:00:04]}  Kf5 {[%clk 0:00:16]} 55. Qh7+ {[%clk 0:00:04]}  Ke5 {[%clk 0:00:16]} 56. Qc2 {[%clk 0:00:04]}  b4 {[%clk 0:00:15]} 57. Qe2+ {[%clk 0:00:03]}  Kd5 {[%clk 0:00:15]} 58. Qd3+ {[%clk 0:00:03]}  Kc6 {[%clk 0:00:15]} 59. Qa6+ {[%clk 0:00:03]}  Kd5 {[%clk 0:00:12]} 60. Qd3+ {[%clk 0:00:03]}  Ke5 {[%clk 0:00:12]} 61. Qe3+ {[%clk 0:00:02]}  Kf5 {[%clk 0:00:13]} 62. Qf2+ {[%clk 0:00:01]}  Kg6 {[%clk 0:00:12]} 63. Qc2+ {[%clk 0:00:02]}  Kh6 {[%clk 0:00:12]} 64. Qc8 {[%clk 0:00:02]}  a2 {[%clk 0:00:10]} 65. Qh8+ {[%clk 0:00:03]}  Kg6 {[%clk 0:00:10]} 66. Qg8+ {[%clk 0:00:04]}  Kf5 {[%clk 0:00:11]} 67. Qxa2 {[%clk 0:00:05]}  Qd4+ {[%clk 0:00:10]} 68. Kh2 {[%clk 0:00:05]}  Qf4+ {[%clk 0:00:07]} 69. Kg1 {[%clk 0:00:05]}  h4 {[%clk 0:00:07]} 70. Qd5+ {[%clk 0:00:04]}  Kg6 {[%clk 0:00:05]} 71. Qg8+ {[%clk 0:00:04]}  Kf5 {[%clk 0:00:06]} 72. Qd5+ {[%clk 0:00:05]}  Kg4 {[%clk 0:00:06]} 73. Qd7+ {[%clk 0:00:04]}  f5 {[%clk 0:00:02]} 74. Qd1+ {[%clk 0:00:04]}  Kg3 {[%clk 0:00:02]} 75. Qd3+ {[%clk 0:00:05]}  Kg4 {[%clk 0:00:02]} 76. Qd1+ {[%clk 0:00:05]}  Kg3 {[%clk 0:00:02]} 77. Qe1+ {[%clk 0:00:06]}  Kg4 {[%clk 0:00:03]} 78. Qe2+ {[%clk 0:00:06]}  Kg3 {[%clk 0:00:03]} 79. Qe1+ {[%clk 0:00:07]}  Kg4 {[%clk 0:00:03]} 80. Qd1+ {[%clk 0:00:08]} 1/2-1/2


[Site "https://www.chess.com"]

[Event "Titled Tuesday Blitz May 30 Late 2023"]
[White "Dragomirescu, Robin-Alexandru"]
[Black "Botez, Alexandra"]
[WhiteFideId "1213849"]
[BlackFideId "2603365"]
[WhiteElo "2356"]
[BlackElo "2040"]
[Result "1-0"]
[Round "06"]
[TimeControl "180+2"]
[Date "2023.05.31"]
[WhiteClock "0:00:10"]
[BlackClock "0:00:50"]

1. b3 {[%clk 0:03:00]}  e5 {[%clk 0:02:58]} 2. Bb2 {[%clk 0:02:54]}  d6 {[%clk 0:02:58]} 3. e3 {[%clk 0:02:53]}  f5 {[%clk 0:02:55]} 4. d4 {[%clk 0:02:46]}  exd4 {[%clk 0:02:54]} 5. Qxd4 {[%clk 0:02:42]}  Nf6 {[%clk 0:02:51]} 6. Nc3 {[%clk 0:02:40]}  Nc6 {[%clk 0:02:51]} 7. Qd2 {[%clk 0:02:35]}  Be7 {[%clk 0:02:41]} 8. O-O-O {[%clk 0:02:22]}  Be6 {[%clk 0:02:38]} 9. Nge2 {[%clk 0:02:08]}  Qd7 {[%clk 0:02:24]} 10. Nf4 {[%clk 0:02:07]}  O-O-O {[%clk 0:02:24]} 11. Nxe6 {[%clk 0:01:44]}  Qxe6 {[%clk 0:02:22]} 12. Bc4 {[%clk 0:01:44]}  Qd7 {[%clk 0:02:22]} 13. Nd5 {[%clk 0:01:43]}  Rhf8 {[%clk 0:02:19]} 14. f3 {[%clk 0:01:35]}  Nxd5 {[%clk 0:02:12]} 15. Bxd5 {[%clk 0:01:32]}  Bf6 {[%clk 0:02:11]} 16. Bxf6 {[%clk 0:01:15]}  Rxf6 {[%clk 0:02:11]} 17. Qc3 {[%clk 0:01:14]}  Ne7 {[%clk 0:02:08]} 18. f4 {[%clk 0:01:04]}  Nxd5 {[%clk 0:02:07]} 19. Rxd5 {[%clk 0:01:04]}  Qc6 {[%clk 0:02:04]} 20. Qd3 {[%clk 0:01:00]}  g6 {[%clk 0:02:02]} 21. Rf1 {[%clk 0:00:49]}  Re8 {[%clk 0:02:01]} 22. Rf3 {[%clk 0:00:49]}  Rfe6 {[%clk 0:02:01]} 23. Rd4 {[%clk 0:00:43]}  Qb6 {[%clk 0:01:50]} 24. Kb2 {[%clk 0:00:42]}  Re4 {[%clk 0:01:42]} 25. c3 {[%clk 0:00:32]}  Qc6 {[%clk 0:01:42]} 26. a4 {[%clk 0:00:26]}  Qd7 {[%clk 0:01:42]} 27. Qd2 {[%clk 0:00:21]}  R8e6 {[%clk 0:01:33]} 28. Rxe4 {[%clk 0:00:18]}  Rxe4 {[%clk 0:01:33]} 29. h3 {[%clk 0:00:18]}  Qe7 {[%clk 0:01:33]} 30. g4 {[%clk 0:00:17]}  Qe6 {[%clk 0:01:26]} 31. g5 {[%clk 0:00:14]}  b6 {[%clk 0:01:07]} 32. h4 {[%clk 0:00:14]}  Qf7 {[%clk 0:01:05]} 33. Qd3 {[%clk 0:00:12]}  Re7 {[%clk 0:01:00]} 34. a5 {[%clk 0:00:10]}  Qd5 {[%clk 0:00:50]} 35. Qxd5 {[%clk 0:00:10]} 1-0


[Site "https://www.chess.com"]

[Event "Titled Tuesday Blitz May 30 Late 2023"]
[White "Kaplan, Avi Harrison"]
[Black "Sailer, Mike"]
[WhiteFideId "30934559"]
[BlackFideId "2012901"]
[WhiteElo "1983"]
[BlackElo "2109"]
[Result "1-0"]
[Round "06"]
[TimeControl "180+2"]
[Date "2023.05.31"]
[WhiteClock "0:00:43"]
[BlackClock "0:00:03"]

1. b3 {[%clk 0:03:00]}  Nf6 {[%clk 0:02:58]} 2. Bb2 {[%clk 0:03:01]}  d5 {[%clk 0:02:56]} 3. e3 {[%clk 0:03:02]}  Bf5 {[%clk 0:02:56]} 4. f4 {[%clk 0:03:01]}  e6 {[%clk 0:02:55]} 5. Nf3 {[%clk 0:03:02]}  Be7 {[%clk 0:02:53]} 6. d3 {[%clk 0:02:51]}  c5 {[%clk 0:02:50]} 7. Nbd2 {[%clk 0:02:50]}  Nc6 {[%clk 0:02:51]} 8. g3 {[%clk 0:02:44]}  O-O {[%clk 0:02:41]} 9. Bg2 {[%clk 0:02:44]}  Ng4 {[%clk 0:02:35]} 10. Qe2 {[%clk 0:02:31]}  Nb4 {[%clk 0:02:24]} 11. Nf1 {[%clk 0:02:12]}  Bf6 {[%clk 0:02:01]} 12. Ne5 {[%clk 0:02:05]}  Bxe5 {[%clk 0:01:49]} 13. fxe5 {[%clk 0:02:06]}  Qc7 {[%clk 0:01:31]} 14. e4 {[%clk 0:01:56]}  dxe4 {[%clk 0:01:17]} 15. dxe4 {[%clk 0:01:57]}  Bg6 {[%clk 0:00:51]} 16. a3 {[%clk 0:01:50]}  Nxc2+ {[%clk 0:00:39]} 17. Qxc2 {[%clk 0:01:50]}  Nxe5 {[%clk 0:00:38]} 18. Qc3 {[%clk 0:01:36]}  f6 {[%clk 0:00:37]} 19. Ne3 {[%clk 0:01:36]}  Rad8 {[%clk 0:00:25]} 20. O-O {[%clk 0:01:35]}  Rd3 {[%clk 0:00:25]} 21. Qe1 {[%clk 0:01:32]}  Rxb3 {[%clk 0:00:24]} 22. Bxe5 {[%clk 0:01:31]}  fxe5 {[%clk 0:00:23]} 23. Rxf8+ {[%clk 0:01:30]}  Kxf8 {[%clk 0:00:23]} 24. Nc4 {[%clk 0:01:28]}  Kg8 {[%clk 0:00:17]} 25. Rd1 {[%clk 0:00:59]}  b5 {[%clk 0:00:16]} 26. Qa5 {[%clk 0:00:41]}  Qxa5 {[%clk 0:00:14]} 27. Nxa5 {[%clk 0:00:42]}  Rxa3 {[%clk 0:00:10]} 28. Nc6 {[%clk 0:00:42]}  c4 {[%clk 0:00:05]} 29. Nxe5 {[%clk 0:00:42]}  c3 {[%clk 0:00:03]} 30. Rd8+ {[%clk 0:00:42]}  Be8 {[%clk 0:00:03]} 31. Rxe8# {[%clk 0:00:43]} 1-0


[Site "https://www.chess.com"]